Workbook

Sheet Sheet1
A1: 贵阳市国防动员办公室2023年公开招聘事业单位工作人员面试成绩、总成绩 及进入体检环节人员名单
A2: （须组织专业测试的B类岗位）
A3: 序号 | B3: 姓名 | C3: 准考证号 | D3: 单位及代码 | E3: 报考岗位 及代码 | F3: 笔试成绩 | G3: 笔试成绩（百分制） | H3: 笔试成绩30% | I3: 专业测试成绩 | J3: 专业测试成绩40% | K3: 面试成绩 | L3: 面试成绩30% | M3: 笔试、专业测试、面试总成绩 | N3: 综合排名 | O3: 是否进入体检
A4: 1 | B4: 何官勇 | C4: 1152019400320 | D4: 贵阳市人防工程质量 技术服务中心 15201019001 | E4: 专业技术岗位 20101190101 | F4: 163.5 | G4: =ROUND(F4/3,2) -> 54.50 | H4: =ROUND(G4*0.3,2) -> 16.35 | I4: 73 | J4: =ROUND(I4*0.4,2) -> 29.20 | K4: 82.4 | L4: =K4*0.3 -> 24.72 | M4: =H4+J4+L4 -> 70.27 | N4: 1 | O4: 是
A5: 2 | B5: 岳玉成 | C5: 1152019400426 | D5: 贵阳市人防工程质量 技术服务中心 15201019001 | E5: 专业技术岗位 20101190101 | F5: 174.5 | G5: =ROUND(F5/3,2) -> 58.17 | H5: =ROUND(G5*0.3,2) -> 17.45 | I5: 68 | J5: =ROUND(I5*0.4,2) -> 27.20 | K5: 80.4 | L5: =K5*0.3 -> 24.12 | M5: =H5+J5+L5 -> 68.77 | N5: 2
A6: 3 | B6: 陈强 | C6: 1152019402120 | D6: 贵阳市人防工程质量 技术服务中心 15201019001 | E6: 专业技术岗位 20101190101 | F6: 153.5 | G6: =ROUND(F6/3,2) -> 51.17 | H6: =ROUND(G6*0.3,2) -> 15.35 | I6: 71 | J6: =ROUND(I6*0.4,2) -> 28.40 | K6: 81.4 | L6: =K6*0.3 -> 24.42 | M6: =H6+J6+L6 -> 68.17 | N6: 3
A7: （管理岗位及不组织专业测试的B类专业技术岗位）
A8: 序号 | B8: 姓名 | C8: 准考证号 | D8: 单位及代码 | E8: 报考岗位 及代码 | F8: 笔试成绩 | G8: 笔试成绩（百分制） | H8: 笔试成绩60% | I8: 面试成绩 | J8: 面试成绩40% | K8: 笔试、面试 总成绩 | L8: 综合排名 | M8: 是否进入体检
A9: 1 | B9: 李韵 | C9: 1152019404413 | D9: 贵阳市人防工程管理服务中心15201019002 | E9: 管理岗20101190201 | F9: 223 | G9: =ROUND(F9/3,2) -> 74.33 | H9: =ROUND(G9*0.6,2) -> 44.60 | I9: 82.2 | J9: =ROUND(I9*0.4,2) -> 32.88 | K9: =J9+H9 -> 77.48 | L9: 1 | M9: 是
A10: 2 | B10: 粟倩 | C10: 1152019403707 | D10: 贵阳市人防工程管理服务中心15201019002 | E10: 管理岗20101190201 | F10: 203.5 | G10: =ROUND(F10/3,2) -> 67.83 | H10: =ROUND(G10*0.6,2) -> 40.70 | I10: 78.8 | J10: =ROUND(I10*0.4,2) -> 31.52 | K10: =J10+H10 -> 72.22 | L10: 2
A11: 3 | B11: 赵雪竹 | C11: 1152019400918 | D11: 贵阳市人防工程管理服务中心15201019002 | E11: 管理岗20101190201 | F11: 200 | G11: =ROUND(F11/3,2) -> 66.67 | H11: =ROUND(G11*0.6,2) -> 40.00 | I11: 78.8 | J11: =ROUND(I11*0.4,2) -> 31.52 | K11: =J11+H11 -> 71.52 | L11: 3
A12: 4 | B12: 钱灵兰 | C12: 1152019401526 | D12: 贵阳市人防工程管理服务中心15201019002 | E12: 管理岗20101190201 | F12: 200 | G12: =ROUND(F12/3,2) -> 66.67 | H12: =ROUND(G12*0.6,2) -> 40.00 | I12: 77.2 | J12: =ROUND(I12*0.4,2) -> 30.88 | K12: =J12+H12 -> 70.88 | L12: 4
